bitfinex-derivatives/quotes_ETHF0:USTF0_20250426
["timestamp","ask_amount","ask_price","bid_price","bid_amount"]
[1745638510472,3.2078,1797.5,1797.3,1.605]
[1745638511160,1.11207,1797.5,1797.3,1.605]
[1745638511364,3.2078,1797.4,1797.3,1.605]
[1745638511672,1.11213,1797.4,1797.3,1.605]
[1745638511872,5.96173,1797.4,1797.3,1.605]
[1745638512768,1.11209,1797.5,1797.3,1.605]
[1745638513259,6.00625,1797.6,1797.3,2.71719]
[1745638513463,4.31993,1797.4,1797.3,1.605]
[1745638516276,3.2078,1797.4,1797.3,1.605]
[1745638516975,4.31993,1797.4,1797.3,1.605]
[1745638517377,3.2078,1797.4,1797.3,1.605]
[1745638517577,3.759,1797.7,1797.3,6.605]
[1745638517578,4.31983,1797.6,1797.3,6.605]
[1745638517874,4.31983,1797.6,1797.4,1.6231]
[1745638518175,3.2078,1797.6,1797.5,1.11207]
[1745638518373,6.9678,1797.6,1797.1,3.2078]
[1745638518574,3.2078,1796.4,1795.8,1.6235]
[1745638518770,1.11319,1795.7,1795.6,9.78964038]
[1745638518969,4.32099,1795.7,1795.6,7.37164038]
[1745638519475,3.2078,1795.7,1795.6,7.37164038]
[1745638521875,2.74173,1795.8,1795.6,7.37164038]
[1745638521876,3.2078,1795.9,1795.7,1.11315]
[1745638522075,3.2078,1795.9,1795.8,0.7992]
[1745638522276,3.2078,1795.9,1795.8,1.91233]
[1745638522475,3.2078,1795.9,1795.8,0.7992]
[1745638524272,4.32086,1795.9,1795.8,0.7992]
[1745638525277,3.2078,1795.9,1795.8,0.7992]
[1745638525475,4.32086,1795.9,1795.8,0.7992]
[1745638525680,3.2078,1795.9,1795.8,0.7992]
[1745638525881,4.32086,1795.9,1795.8,0.7992]
[1745638527280,3.2078,1795.9,1795.8,0.7992]
[1745638527483,4.32086,1795.9,1795.8,0.7992]
[1745638527781,3.2078,1795.9,1795.8,1.91233]
[1745638529079,3.2078,1795.9,1795.8,0.7992]
[1745638529382,4.32086,1795.9,1795.8,0.7992]
[1745638531489,1.11313,1795.8,1795.7,2.5615]
[1745638531679,1.11313,1795.8,1795.7,3.3873]
[1745638535288,3.2078,1795.9,1795.8,1.11313]
[1745638540489,3.2078,1795.9,1795.8,6.11313]
[1745638542482,3.2078,1795.9,1795.8,1.11313]
[1745638543383,3.2078,1795.9,1795.8,2.80883]
[1745638548787,3.2078,1795.9,1795.8,1.11313]
[1745638549189,4.9388,1795.9,1795.8,1.11313]
[1745638549695,4.9388,1795.9,1795.8,2.84043]
[1745638551407,3.2078,1795.9,1795.8,2.84043]
[1745638552002,1.731,1796.1,1796.0,1.113]
[1745638552198,4.9388,1796.1,1796.0,1.113]
[1745638553203,1.731,1796.1,1796.0,1.113]
[1745638553512,4.9388,1796.1,1796.0,1.113]
[1745638555509,6.05174,1796.1,1796.0,1.113]
[1745638555919,6.05174,1796.1,1795.9,5.5017]
[1745638556104,1.6843,1796.0,1795.9,6.61476]
[1745638558006,4.32076,1796.1,1796.0,1.113]
[1745638558007,3.2078,1796.1,1796.0,1.113]
[1745638558208,3.2078,1796.1,1796.0,2.7276]
[1745638558605,1.6524,1796.4,1796.0,9.8224]
[1745638558811,3.2078,1796.1,1796.0,2.72757]
[1745638559214,4.8602,1796.1,1796.0,2.72757]
[1745638562020,4.8602,1796.1,1796.0,1.11297]
[1745638563017,4.8602,1796.1,1796.0,2.82357]
[1745638565022,3.2078,1796.1,1796.0,2.82357]
[1745638568821,3.2078,1796.5,1796.4,1.11272]
[1745638569024,5.96149,1796.5,1796.4,1.11272]
[1745638569419,1.11275,1796.4,1796.3,1.11278]
[1745638569725,1.641,1796.4,1796.3,1.11278]
[1745638569919,2.75377,1796.4,1796.2,6.57603]
[1745638570117,3.2078,1796.3,1796.2,6.57603]
[1745638570318,4.8488,1796.3,1796.2,6.57603]
[1745638570924,5.96162,1796.3,1796.2,3.797]
[1745638572227,5.96162,1796.3,1796.2,4.90988]
[1745638572418,4.8488,1796.3,1796.2,4.90988]
[1745638572618,5.96162,1796.3,1796.2,3.797]
[1745638572821,4.8488,1796.3,1796.2,4.90988]
[1745638573415,3.2078,1796.3,1796.2,4.90988]
[1745638573614,3.2078,1796.3,1796.2,6.61318]
[1745638574120,1.11272,1796.5,1796.2,6.61318]
[1745638574121,3.2078,1796.7,1796.6,1.11263]
[1745638574326,1.11265,1796.6,1796.4,1.11271]
[1745638574526,2.71515,1796.6,1796.5,1.11269]
[1745638574727,1.6025,1796.6,1796.5,1.11269]
[1745638575025,2.71513,1796.6,1796.4,2.81601]
[1745638575321,3.2078,1796.5,1796.4,2.81601]
[1745638575625,4.8103,1796.5,1796.4,2.81601]
[1745638576528,4.8103,1796.5,1796.4,1.11271]
[1745638577020,1.11263,1796.7,1796.5,1.11266]
[1745638577213,4.32043,1796.7,1796.5,1.11266]
[1745638578215,1.6058,1796.6,1796.5,1.11266]
[1745638579228,3.2078,1796.7,1796.6,1.11263]
[1745638579526,3.2078,1796.7,1796.6,2.75993]
[1745638579724,3.2078,1796.7,1796.6,4.42973]
[1745638580123,3.2078,1796.7,1796.6,3.3171]
[1745638580124,4.32037,1796.7,1796.6,3.3171]
[1745638580428,5.90437,1796.7,1796.6,3.3171]
[1745638580621,4.7918,1796.7,1796.6,4.42973]
[1745638581229,5.90437,1796.7,1796.6,3.3171]
[1745638581922,5.90437,1796.7,1796.6,4.42973]
[1745638582220,4.7918,1796.7,1796.6,4.42973]
[1745638584329,1.584,1796.7,1796.6,4.42973]
[1745638584531,4.7918,1796.7,1796.6,4.42973]
[1745638584723,3.2078,1796.7,1796.6,4.42973]
[1745638586325,1.11251,1796.8,1796.7,1.11257]
[1745638586831,1.11257,1796.7,1796.6,0.8072]
[1745638587130,4.32037,1796.7,1796.6,3.797]
[1745638587433,4.90687,1796.7,1796.6,3.797]
[1745638587629,6.58267,1796.7,1796.6,3.797]
[1745638589126,6.58267,1796.7,1796.6,4.90963]
[1745638589431,6.58267,1796.7,1796.6,3.797]
[1745638589626,6.58267,1796.7,1796.6,4.90963]
[1745638589826,6.58267,1796.7,1796.6,3.797]
[1745638590227,6.58267,1796.7,1796.6,4.90963]
[1745638590831,6.58267,1796.7,1796.5,1.11265]
[1745638591024,2.84193,1796.6,1796.4,6.62261]
[1745638591225,1.7293,1796.5,1796.4,6.62261]
[1745638591434,1.7293,1796.5,1796.4,6.58761]
[1745638592735,1.7293,1796.5,1796.3,1.6726]
[1745638592933,1.11275,1796.4,1796.3,0.8248]
[1745638593328,2.69965,1796.4,1796.3,0.8248]
[1745638593825,2.69965,1796.4,1796.3,1.93762]
[1745638594321,2.69965,1796.4,1796.3,0.8248]
[1745638594526,2.69965,1796.4,1796.3,1.93762]
[1745638596533,2.69965,1796.4,1796.3,0.8248]
[1745638598337,1.5869,1796.4,1796.3,1.93762]
[1745638598729,1.5869,1796.4,1796.3,3.59332]
[1745638599430,2.69965,1796.4,1796.3,2.4805]
[1745638599924,2.69965,1796.4,1796.0,0.8064]
[1745638599925,1.11294,1796.1,1796.0,4.5694]
[1745638600130,1.11294,1796.1,1795.9,3.2078]
[1745638600131,1.113,1796.0,1795.9,0.8115]
[1745638600437,1.6611,1796.0,1795.9,1.92456]
[1745638600633,1.6611,1796.0,1795.9,4.39806]
[1745638601630,2.7741,1796.0,1795.9,0.8115]
[1745638604335,1.6611,1796.0,1795.9,1.92456]
[1745638604742,1.6611,1796.0,1795.9,3.55706]
[1745638606540,2.7741,1796.0,1795.9,2.444]
[1745638607238,2.7741,1796.0,1795.9,3.55706]
[1745638607443,1.6611,1796.0,1795.9,3.55706]
[1745638607941,3.2078,1796.1,1796.0,1.113]
[1745638608147,3.2078,1796.1,1796.0,3.5195]
[1745638608650,3.2078,1796.3,1796.2,1.11288]
[1745638609536,3.2078,1796.3,1796.2,2.69938]
[1745638609740,3.2078,1796.3,1796.2,7.69938]
[1745638610338,1.11264,1796.6,1796.4,1.1127]
[1745638610545,6.00941,1796.7,1796.5,1.93269]
[1745638610843,6.00941,1796.7,1796.5,3.64639]
[1745638611143,3.2078,1796.7,1796.6,1.11263]
[1745638611347,4.9643,1796.9,1796.8,1.11251]
[1745638611934,3.2078,1796.9,1796.8,2.82621]
[1745638612334,4.32015,1797.1,1796.8,1.7137]
[1745638612551,4.32015,1797.1,1796.9,1.9541]
[1745638612745,4.32015,1797.1,1797.0,1.7137]
[1745638612945,3.2078,1797.1,1797.0,1.7137]
[1745638613146,4.32012,1797.1,1797.0,1.7137]
[1745638613342,3.2078,1797.1,1797.0,1.7137]
[1745638613843,4.32012,1797.1,1797.0,1.7137]
[1745638614037,6.06982,1797.1,1797.0,1.7137]
[1745638615651,1.11247,1796.9,1796.7,4.6232]
[1745638615948,4.32027,1796.9,1796.7,5.73576]
[1745638616147,1.596,1796.8,1796.7,5.73576]
[1745638619447,3.2078,1796.9,1796.8,1.11251]
[1745638619639,3.2078,1796.9,1796.8,3.68691]
[1745638621141,1.11239,1797.0,1796.8,3.68691]
[1745638621449,3.2078,1796.9,1796.8,3.68691]
[1745638621749,3.2078,1796.9,1796.8,1.95511]
[1745638622453,4.32014,1797.1,1797.0,1.11238]
[1745638622652,1.11238,1797.0,1796.9,1.11241]
[1745638622950,1.11238,1797.0,1796.8,1.95507]
[1745638623150,3.2078,1796.9,1796.8,1.95507]
[1745638626355,4.32024,1796.9,1796.8,0.8426]
[1745638626653,4.9171,1796.9,1796.8,1.95511]
[1745638626853,6.02954,1796.9,1796.8,1.95511]
[1745638627051,6.02954,1796.9,1796.7,4.6232]
[1745638627052,1.11251,1796.8,1796.7,4.6232]
[1745638627247,2.82181,1796.8,1796.7,4.6232]
[1745638627447,2.82181,1796.8,1796.7,5.73577]
[1745638627751,1.7093,1796.8,1796.7,5.73577]
[1745638627956,2.82181,1796.8,1796.7,4.6232]
[1745638628547,3.2078,1796.9,1796.8,1.11251]
[1745638629053,3.2078,1797.1,1797.0,1.11238]
[1745638629353,3.2078,1797.1,1797.0,4.87338]
[1745638630549,3.2078,1797.1,1797.0,1.11238]
[1745638631558,2.69554,1797.3,1797.1,1.11227]
[1745638631857,2.69554,1797.3,1797.2,0.8025]
[1745638632458,1.11233,1797.1,1796.9,1.11241]
[1745638632658,3.2078,1797.4,1797.0,3.761]
[1745638632858,2.86234,1797.3,1797.1,1.97442]
[1745638633853,1.11226,1797.2,1797.1,0.8621]
[1745638634051,1.11232,1797.1,1797.0,3.761]
[1745638634251,4.9579,1797.2,1796.9,0.8025]
[1745638634252,1.11238,1797.0,1796.9,0.8025]
[1745638634460,1.11248,1796.9,1796.7,1.97466]
[1745638634653,1.6038,1796.8,1796.7,1.97466]
[1745638634960,1.6038,1796.8,1796.7,5.73566]
[1745638636456,4.32023,1797.0,1796.8,1.11249]
[1745638636656,3.2078,1797.0,1796.9,1.11244]
[1745638636848,4.8116,1797.2,1797.1,1.11232]
[1745638637060,3.2078,1797.2,1797.1,1.11232]
[1745638637466,3.2078,1797.2,1797.1,2.84592]
[1745638638362,4.32006,1797.2,1797.1,1.7336]
[1745638638566,5.99416,1797.2,1797.1,1.7336]
[1745638638764,1.11232,1797.1,1797.0,9.069]
[1745638638965,2.78642,1797.1,1797.0,9.069]
[1745638639361,2.78642,1797.1,1797.0,5.308]
[1745638639564,2.78642,1797.1,1797.0,9.069]
[1745638641566,2.78642,1797.1,1797.0,5.308]
[1745638642169,3.41632,1797.1,1797.0,5.308]
[1745638642869,3.41632,1797.1,1797.0,2.1002]
[1745638643173,8.50211907,1797.1,1797.0,1e-05]
[1745638643371,1.11253,1796.8,1796.5,1.11265]
[1745638643575,4.32033,1796.8,1796.6,0.824]
[1745638643770,4.32033,1796.8,1796.6,1.93661]
[1745638643975,4.32033,1796.8,1796.7,2.5674]
[1745638646576,4.32033,1796.8,1796.7,0.8643]
[1745638647674,1.11257,1796.7,1796.6,4.585]
[1745638647872,2.85507,1796.7,1796.6,4.585]
[1745638648281,2.85507,1796.7,1796.6,3.761]
[1745638649572,1.7425,1796.7,1796.6,6.60193]
[1745638649778,2.85507,1796.7,1796.6,6.3347]
[1745638649978,1.7425,1796.7,1796.6,7.44733]
[1745638650774,2.85507,1796.7,1796.6,6.3347]
[1745638650972,2.85507,1796.7,1796.6,7.44733]
[1745638651174,1.7425,1796.7,1796.6,7.44733]
[1745638651581,3.2078,1796.8,1796.7,1.11257]
[1745638651881,1.11238,1797.1,1796.9,1.11244]
[1745638652180,1.11238,1797.1,1797.0,2.568]
[1745638652379,4.32018,1797.1,1797.0,2.568]
[1745638655079,4.32018,1797.1,1797.0,0.8397]
[1745638655879,1.11238,1797.0,1796.9,4.5532]
[1745638656078,2.83208,1797.0,1796.9,3.761]
[1745638656381,1.11244,1796.9,1796.8,5.4465]
[1745638656574,2.83214,1796.9,1796.8,5.4465]
[1745638657878,1.11252,1796.8,1796.6,2.85158]
[1745638658076,2.83222,1796.8,1796.7,5.391]
[1745638659692,2.83222,1796.8,1796.7,1.63]
[1745638659982,2.83225,1796.8,1796.7,3.761]
[1745638660182,2.83225,1796.8,1796.7,5.3902]
[1745638662090,2.83225,1796.8,1796.7,3.761]
[1745638663385,2.83225,1796.8,1796.7,5.3438]
[1745638665587,2.83225,1796.8,1796.7,1.5828]
[1745638665888,1.11257,1796.7,1796.6,1.739]
[1745638666088,1.11269,1796.5,1796.4,5.4714]
[1745638666391,1.11269,1796.5,1796.4,3.761]
[1745638666693,1.11288,1796.2,1796.1,7.2038]
[1745638666878,1.11288,1796.2,1796.1,3.4428]
[1745638667685,2.69568,1796.2,1796.1,3.4428]
[1745638667884,2.69568,1796.2,1796.1,0.8744]
[1745638668290,1.5828,1796.2,1795.8,2.527]
[1745638668484,1.5828,1796.1,1795.8,6.288]
[1745638668680,1.11305,1796.0,1795.9,1.669]
[1745638669378,4.7906,1796.1,1795.9,2.78204]
[1745638669379,4.32074,1796.1,1795.9,2.78204]
[1745638669589,3.2078,1796.1,1795.9,3.61974]
[1745638669778,4.32074,1796.1,1796.0,1.669]
[1745638670393,1.11294,1796.1,1796.0,1.669]
[1745638670689,1.11292,1796.2,1796.0,1.669]
[1745638670890,1.11292,1796.2,1796.1,0.8181]
[1745638671086,2.84892,1796.2,1796.1,0.8181]
[1745638672385,3.2078,1796.3,1796.1,1.93102]
[1745638672682,3.2078,1796.3,1796.2,1.724]
[1745638672882,4.32062,1796.3,1796.2,1.724]
[1745638673691,3.2078,1796.3,1796.2,2.83688]
[1745638673886,4.32062,1796.3,1796.2,1.724]
[1745638674191,3.2078,1796.3,1796.2,1.724]
[1745638674584,2.8488,1796.4,1796.2,1.724]
[1745638674891,2.8488,1796.4,1796.3,0.8261]
[1745638675091,6.0566,1796.4,1796.3,0.8261]
[1745638676488,6.0566,1796.4,1796.3,2.4253]
[1745638676987,2.8488,1796.4,1796.3,2.4253]
[1745638677190,4.9438,1796.4,1796.3,3.53812]
[1745638677388,1.11267,1796.6,1796.4,1.11274]
[1745638677589,4.32043,1796.7,1796.5,2.81179]
[1745638677891,1.11263,1796.6,1796.5,1.6991]
[1745638678191,2.85233,1796.6,1796.5,1.6991]
[1745638680494,1.7397,1796.6,1796.5,1.6991]
[1745638680693,1.7397,1796.6,1796.5,2.81179]
[1745638680993,3.2078,1796.9,1796.5,9.48077]
[1745638681195,2.80249,1797.0,1796.6,1.7552]
[1745638681392,2.80249,1797.0,1796.7,2.71203]
[1745638681591,1.11244,1796.9,1796.8,1.7552]
[1745638681792,2.80254,1796.9,1796.8,1.7552]
[1745638682293,1.11251,1796.8,1796.7,1.5995]
[1745638682591,2.80261,1796.8,1796.7,1.5995]
[1745638682793,2.80261,1796.8,1796.7,3.3547]
[1745638684289,2.80261,1796.8,1796.7,1.5995]
[1745638684490,2.80261,1796.8,1796.7,0.7917]
[1745638687294,1.11251,1796.8,1796.7,2.4858]
[1745638687990,2.79641,1796.8,1796.7,2.4858]
[1745638688695,2.79641,1796.8,1796.7,0.7917]
[1745638688896,1.11263,1796.6,1796.5,2.5702]
[1745638689195,2.73197,1796.7,1796.5,4.51537]
[1745638689395,2.73197,1796.7,1796.6,1.6277]
[1745638689787,1.6194,1796.7,1796.6,2.74033]
[1745638689987,1.6194,1796.7,1796.6,1.6277]
[1745638690189,1.11241,1797.0,1796.8,1.11251]
[1745638690492,3.2078,1797.0,1796.6,2.7403]
[1745638690702,2.73184,1796.9,1796.6,2.7403]
[1745638690897,1.6194,1796.8,1796.7,1.6277]
[1745638691198,2.73191,1796.8,1796.7,1.6277]
[1745638691502,1.1126,1796.7,1796.5,2.82129]
[1745638691696,2.732,1796.7,1796.5,4.44899]
[1745638691898,1.6194,1796.7,1796.6,2.74033]
[1745638692198,1.11249,1796.9,1796.6,2.74033]
[1745638692398,2.79189,1796.9,1796.7,1.7197]
[1745638692592,1.6794,1796.9,1796.5,4.9164]
[1745638692801,1.11263,1796.6,1796.5,3.4283]
[1745638693590,2.79202,1796.7,1796.5,3.4283]
[1745638694293,2.79202,1796.7,1796.5,4.54099]
[1745638694496,2.79203,1796.6,1796.5,3.4283]
[1745638694891,1.6794,1796.6,1796.5,3.4283]
[1745638695094,2.79203,1796.6,1796.5,3.4283]
[1745638695495,1.6794,1796.6,1796.5,4.54099]
[1745638696702,3.2078,1796.8,1796.6,1.11261]
[1745638696703,4.32034,1796.8,1796.6,1.11261]
[1745638697002,4.32034,1796.8,1796.6,2.72511]
[1745638697200,4.32034,1796.8,1796.6,1.6125]
[1745638697699,1.11254,1796.8,1796.6,1.6125]
[1745638698098,1.11254,1796.8,1796.6,2.72513]
[1745638698793,1.11257,1796.7,1796.6,1.6125]
[1745638699190,1.11255,1796.8,1796.6,2.72512]
[1745638699402,1.11257,1796.7,1796.6,1.6125]
[1745638699601,2.86517,1796.7,1796.6,1.6125]
[1745638701303,1.11263,1796.6,1796.5,1.7086]
[1745638701501,2.80863,1796.6,1796.5,0.8325]
[1745638702208,1.696,1796.6,1796.5,1.94519]
[1745638702406,2.80863,1796.6,1796.5,2.5486]
[1745638703806,2.80863,1796.6,1796.5,3.66129]
[1745638704098,1.696,1796.6,1796.5,3.66129]
[1745638704710,3.2078,1796.8,1796.7,1.11257]
[1745638704896,4.32031,1796.8,1796.6,2.70999]
[1745638705101,6.02891,1796.8,1796.7,1.5974]
[1745638705906,2.82111,1796.8,1796.7,1.5974]
[1745638708510,2.82111,1796.8,1796.7,2.4292]
[1745638709310,4.4241,1797.0,1796.7,3.54177]
[1745638709311,1.11248,1796.9,1796.7,3.54177]
[1745638709506,2.82808,1796.9,1796.8,1.6233]
[1745638710908,1.7156,1796.9,1796.8,2.73581]
[1745638711110,2.82804,1796.9,1796.8,1.6233]
[1745638711801,1.7156,1796.9,1796.8,2.73581]
[1745638712002,2.82804,1796.9,1796.8,1.6233]
[1745638712518,3.2078,1797.0,1796.8,1.6233]
[1745638712811,3.2078,1797.0,1796.9,0.8114]
[1745638713212,4.32018,1797.0,1796.9,0.8114]
[1745638714001,3.2078,1797.0,1796.9,3.58174]
[1745638714407,3.2078,1797.4,1796.9,13.45817]
[1745638714608,3.2078,1797.4,1797.0,6.224]
[1745638714817,3.2078,1797.4,1797.3,1.1122]
[1745638715314,1.7096,1797.6,1797.4,1.1121]
[1745638715514,1.7096,1797.6,1797.5,2.4986]
[1745638716510,2.82161,1797.6,1797.5,2.4986]
[1745638717011,1.11207,1797.5,1797.4,0.8071]
[1745638717206,2.86637,1797.5,1797.4,0.8071]
[1745638718117,4.31982,1797.6,1797.4,0.8071]
[1745638718309,1.11202,1797.6,1797.4,2.4035]
[1745638718515,2.86629,1797.7,1797.4,3.51561]
[1745638718816,2.86629,1797.7,1797.5,1.5964]
[1745638719311,1.7543,1797.7,1797.6,0.8067]
[1745638719519,3.2078,1797.8,1797.6,0.8067]
[1745638719713,3.2078,1797.8,1797.7,1.11195]
[1745638720017,3.2078,1797.8,1797.7,0.8282]
[1745638720318,2.78635,1797.9,1797.7,2.5612]
[1745638721111,1.11189,1797.8,1797.7,2.5612]
[1745638721309,2.78639,1797.8,1797.7,2.5612]
[1745638721514,1.6745,1797.8,1797.7,2.5612]
[1745638722014,2.78639,1797.8,1797.7,2.5612]
[1745638722715,1.11195,1797.7,1797.6,4.5657]
[1745638722918,2.79245,1797.7,1797.6,4.5657]
[1745638724211,1.6805,1797.7,1797.6,4.5657]
[1745638724412,3.2078,1797.9,1797.6,5.67771]
[1745638724612,3.2078,1797.9,1797.7,2.462]
[1745638724613,4.8883,1797.9,1797.7,2.462]
[1745638724913,1.6805,1797.8,1797.7,2.462]
[1745638725313,2.79239,1797.8,1797.7,2.462]
[1745638727218,2.79239,1797.8,1797.7,0.8608]
[1745638727614,2.79239,1797.8,1797.7,2.585]
[1745638728819,2.79239,1797.8,1797.7,0.8608]
[1745638729020,1.11195,1797.7,1797.6,4.5657]
[1745638729322,2.70185,1797.7,1797.6,4.5657]
[1745638730623,5.90965,1797.7,1797.6,4.5657]
[1745638731017,5.90965,1797.7,1797.4,3.758]
[1745638731018,4.7977,1797.7,1797.4,3.758]
[1745638731219,1.11207,1797.5,1797.4,3.758]
[1745638731417,1.11207,1797.5,1797.4,1.5969]
[1745638731621,1.11213,1797.4,1797.3,3.758]
[1745638732122,1.11213,1797.4,1797.3,5.4661]
[1745638732324,1.11212,1797.5,1797.3,5.4661]
[1745638732522,1.7015,1797.4,1797.3,1.7081]
[1745638732928,1.7015,1797.4,1797.3,2.8203]
[1745638733621,1.7015,1797.4,1797.3,1.7081]
[1745638733829,2.81363,1797.4,1797.3,1.7081]
[1745638734021,1.1122,1797.3,1797.2,1.6723]
[1745638734228,1.11238,1797.0,1796.9,3.758]
[1745638734930,1.11238,1797.0,1796.9,1.625]
[1745638735323,2.81288,1797.0,1796.9,1.625]
[1745638735831,1.11244,1796.9,1796.8,1.6978]
[1745638736029,2.81294,1796.9,1796.8,1.6978]
[1745638738531,1.11242,1797.0,1796.8,1.6978]
[1745638738830,1.11242,1797.0,1796.9,1.6443]
[1745638739223,2.79602,1797.0,1796.9,1.6443]
[1745638741835,6.00382,1797.0,1796.9,1.6443]
[1745638742126,9.8914,1797.0,1796.5,3.2078]
[1745638742331,1.11257,1796.7,1796.6,0.873]
[1745638742723,2.84937,1796.7,1796.6,0.873]
[1745638745634,2.84937,1796.7,1796.6,2.6027]
[1745638749029,1.11257,1796.7,1796.6,2.6027]
[1745638754242,1.11257,1796.7,1796.6,0.873]
[1745638754538,2.69357,1796.7,1796.6,0.873]
[1745638755232,1.11284,1796.3,1796.1,3.2078]
[1745638755537,1.11284,1796.3,1796.1,9.4248]
[1745638755839,1.11284,1796.3,1796.2,1.5875]
[1745638760533,1.11279,1796.4,1796.2,2.4474]
[1745638760741,3.2078,1796.5,1796.3,1.11279]
[1745638760936,4.32052,1796.5,1796.3,1.7547]
[1745638761442,4.32052,1796.5,1796.3,2.86751]
[1745638762434,4.32052,1796.5,1796.4,1.6354]
[1745638762637,3.2078,1796.5,1796.4,1.6354]
[1745638762840,3.17255243,1796.7,1796.4,2.74815]
[1745638763039,3.2078,1796.6,1796.5,1.6284]
[1745638763236,3.2078,1796.6,1796.5,4.37649]
[1745638763435,5.872,1796.9,1796.5,3.2638]
[1745638763436,4.32037,1796.7,1796.5,3.2638]
[1745638763645,4.32037,1796.7,1796.6,1.6354]
[1745638765741,3.2078,1796.7,1796.6,1.6354]
[1745638766244,4.32037,1796.7,1796.6,1.6354]
[1745638768635,3.2078,1796.7,1796.6,1.6354]
[1745638768839,4.32037,1796.7,1796.6,1.6354]
[1745638769146,1.11255,1796.8,1796.6,2.74802]
[1745638769541,5.98823,1797.4,1796.8,1.11251]
[1745638769841,5.98823,1797.4,1796.9,3.2706]
[1745638769842,1.11241,1797.0,1796.9,3.2706]
[1745638770034,3.2078,1797.0,1796.9,4.38304]
[1745638770235,5.9863,1797.2,1796.9,4.38304]
[1745638770435,5.9863,1797.2,1797.0,1.6683]
[1745638770644,5.9863,1797.2,1797.0,2.78068]
[1745638770846,1.11238,1797.0,1796.9,1.6023]
[1745638771150,4.32018,1797.0,1796.9,1.6023]
[1745638771633,1.11238,1797.0,1796.9,3.3138]
[1745638772243,4.32018,1797.0,1796.9,3.3138]
[1745638773242,3.2078,1797.0,1796.9,3.3138]
[1745638774143,4.32018,1797.0,1796.9,3.3138]
[1745638774444,5.94848,1797.0,1796.9,3.3138]
[1745638775144,5.94848,1797.0,1796.9,0.7979]
[1745638777244,1.11251,1796.8,1796.7,7.0526]
[1745638780550,1.6364,1796.9,1796.6,3.2078]
[1745638780747,2.84127,1796.7,1796.6,3.2078]
[1745638781447,2.84127,1796.7,1796.6,4.9099]
[1745638782742,2.84127,1796.7,1796.6,5.7821]
[1745638783239,1.7287,1796.7,1796.6,5.7821]
[1745638783442,1.7287,1796.7,1796.6,6.6475]
[1745638783943,1.7287,1796.7,1796.6,3.4397]
[1745638784548,1.7287,1796.7,1796.6,4.55233]
[1745638784849,3.2078,1796.9,1796.6,4.55233]
[1745638785049,1.11252,1796.8,1796.7,1.634]
[1745638787449,2.85242,1796.8,1796.7,1.634]
[1745638794544,1.11257,1796.7,1796.6,0.8722]
[1745638794750,3.62417,1796.7,1796.6,0.8722]
[1745638795362,2.82997,1796.7,1796.6,0.8722]
[1745638795659,2.82997,1796.7,1796.6,3.407]
[1745638798664,1.11269,1796.5,1796.4,3.757]
[1745638798961,4.32049,1796.5,1796.4,3.757]
[1745638799450,6.07389,1796.5,1796.4,3.757]
[1745638800459,1.11282,1796.3,1796.2,5.4193]
[1745638800662,2.86619,1796.4,1796.2,5.4193]
[1745638800863,2.86619,1796.4,1796.3,1.6623]
[1745638801366,1.7534,1796.4,1796.3,1.6623]
[1745638801555,4.32054,1796.5,1796.3,1.6623]
[1745638801861,5.94334,1796.5,1796.4,0.856]
[1745638802063,5.94334,1796.5,1796.4,1.6786]
[1745638802258,3.2078,1796.5,1796.4,1.6786]
[1745638802562,1.11269,1796.5,1796.4,1.6786]
[1745638802763,1.11269,1796.5,1796.4,3.2609]
[1745638806168,2.76359,1796.5,1796.4,3.2609]
[1745638808871,2.76359,1796.5,1796.4,0.856]
[1745638809168,3.57959,1796.5,1796.4,0.856]
[1745638813669,1.11269,1796.5,1796.4,0.856]
[1745638813874,1.11269,1796.5,1796.4,1.6586]
[1745638814074,4.32047,1796.6,1796.4,1.6586]
[1745638814374,4.32047,1796.6,1796.5,1.7191]
[1745638817585,4.32047,1796.6,1796.4,0.856]
[1745638817586,1.11269,1796.5,1796.4,0.856]
[1745638817787,3.66849,1796.5,1796.4,0.856]
[1745638821187,4.32048,1796.6,1796.4,0.856]
[1745638821386,4.32048,1796.6,1796.5,1.6966]
[1745638822184,4.32043,1796.6,1796.5,1.6966]
[1745638823183,3.2078,1796.6,1796.5,1.6966]
[1745638824389,4.32043,1796.6,1796.5,1.6966]
[1745638824791,1.11263,1796.6,1796.5,1.6966]
[1745638824987,5.99473,1796.8,1796.5,2.80929]
[1745638825195,5.99473,1796.8,1796.6,1.11262]
[1745638825384,5.99473,1796.8,1796.7,0.794]
[1745638825689,4.8822,1796.8,1796.7,1.6114]
[1745638825888,3.2078,1796.8,1796.7,3.2553]
[1745638826484,4.32031,1796.8,1796.7,3.2553]
[1745638826686,3.2078,1796.8,1796.7,3.2553]
[1745638827782,4.32031,1796.8,1796.7,3.2553]
[1745638827989,3.2078,1796.8,1796.7,3.2553]
[1745638828387,3.2078,1796.8,1796.7,4.36787]
[1745638828894,6.03782,1797.0,1796.7,4.36787]
[1745638829193,1.11244,1796.9,1796.8,1.6521]
[1745638830798,2.81134,1796.9,1796.8,1.6521]
[1745638834796,3.2078,1797.0,1796.8,1.6521]
[1745638834991,3.2078,1797.0,1796.9,1.11244]